[Event "*** Titled Tuesday 3|2 Blitz"]
[Site "Chess.com"]
[Date "2016.04.05"]
[Round "1"]
[White "Blitzstream"]
[Black "Kawhi_Leonard2"]
[Result "1-0"]
[WhiteElo "2436"]
[BlackElo "2088"]
[TimeControl "180+2"]
[EndTime "11:07:02 PDT"]
[Termination "Blitzstream won by resignation"]

1. d4 {[%clk 0:03:01.9]} 1... Nf6 {[%clk 0:02:59.5]} 2. Bg5 {[%clk 0:03:02.3]}
2... d5 {[%clk 0:02:54.6]} 3. e3 {[%clk 0:03:02.6]} 3... Nbd7 {[%clk 0:02:54.5]}
4. c4 {[%clk 0:03:03.2]} 4... e6 {[%clk 0:02:48.3]} 5. Nc3 {[%clk 0:03:02.4]}
5... h6 {[%clk 0:02:46]} 6. Bh4 {[%clk 0:03:03]} 6... Be7 {[%clk 0:02:40.3]} 7.
Nf3 {[%clk 0:03:02.6]} 7... O-O {[%clk 0:02:40.7]} 8. Bd3 {[%clk 0:03:02.2]}
8... dxc4 {[%clk 0:02:40.6]} 9. Bxc4 {[%clk 0:03:03.1]} 9... a6 {[%clk
0:02:39.1]} 10. O-O {[%clk 0:03:00.6]} 10... b5 {[%clk 0:02:39.7]} 11. Bd3
{[%clk 0:03:00.8]} 11... Bb7 {[%clk 0:02:41.3]} 12. a3 {[%clk 0:02:49.4]} 12...
c5 {[%clk 0:02:41.4]} 13. dxc5 {[%clk 0:02:45.8]} 13... Nxc5 {[%clk 0:02:41.9]}
14. Bc2 {[%clk 0:02:46.6]} 14... Nfe4 {[%clk 0:02:39.6]} 15. Qxd8 {[%clk
0:02:11.1]} 15... Bxd8 {[%clk 0:02:39.4]} 16. Nxe4 {[%clk 0:02:11.9]} 16... Bxe4
{[%clk 0:02:27.9]} 17. Bxe4 {[%clk 0:02:10.1]} 17... Nxe4 {[%clk 0:02:28.8]} 18.
Bxd8 {[%clk 0:02:10.7]} 18... Rfxd8 {[%clk 0:02:29.1]} 19. Rac1 {[%clk 0:02:11]}
19... Rac8 {[%clk 0:02:28.7]} 20. h3 {[%clk 0:02:09.9]} 20... Kf8 {[%clk
0:02:29.6]} 21. Rfe1 {[%clk 0:01:45.8]} 21... f6 {[%clk 0:02:22.6]} 22. Kf1
{[%clk 0:01:46.9]} 22... e5 {[%clk 0:02:23.1]} 23. Ke2 {[%clk 0:01:47.3]} 23...
Ke7 {[%clk 0:02:24.3]} 24. Red1 {[%clk 0:01:37.1]} 24... g6 {[%clk 0:02:10.7]}
25. h4 {[%clk 0:01:23.2]} 25... Nd6 {[%clk 0:02:08.9]} 26. Nd2 {[%clk
0:01:20.6]} 26... h5 {[%clk 0:02:04.7]} 27. g3 {[%clk 0:01:21.4]} 27... Nb7
{[%clk 0:02:02.4]} 28. Nb3 {[%clk 0:01:19.2]} 28... Nd6 {[%clk 0:01:42.1]} 29.
Nc5 {[%clk 0:01:03.8]} 29... Nc4 {[%clk 0:01:42.8]} 30. Rxd8 {[%clk 0:01:02.9]}
30... Rxd8 {[%clk 0:01:35.7]} 31. Rc2 {[%clk 0:01:01.8]} 31... a5 {[%clk
0:01:29.9]} 32. a4 {[%clk 0:00:50.5]} 32... Nd6 {[%clk 0:01:19.3]} 33. axb5
{[%clk 0:00:50.4]} 33... Nxb5 {[%clk 0:01:19.6]} 34. Nb7 {[%clk 0:00:51.6]}
34... Ra8 {[%clk 0:01:06.6]} 35. Rc5 {[%clk 0:00:52]} 35... Nd6 {[%clk
0:01:02.9]} 36. Nxa5 {[%clk 0:00:52.4]} 36... Rb8 {[%clk 0:01:00.2]} 37. Nc6+
{[%clk 0:00:53.4]} 1-0

[Event "*** Titled Tuesday 3|2 Blitz"]
[Site "Chess.com"]
[Date "2016.04.05"]
[Round "1"]
[White "Paralinch"]
[Black "Rating-Schmating"]
[Result "1-0"]
[WhiteElo "2565"]
[BlackElo "2237"]
[TimeControl "180+2"]
[EndTime "11:07:16 PDT"]
[Termination "Paralinch won by checkmate"]

1. e4 {[%clk 0:03:01.9]} 1... e6 {[%clk 0:03:01.1]} 2. d4 {[%clk 0:03:01.8]}
2... d5 {[%clk 0:03:02]} 3. Nc3 {[%clk 0:03:02.6]} 3... Bb4 {[%clk 0:03:02.3]}
4. e5 {[%clk 0:03:03.2]} 4... c5 {[%clk 0:03:02.9]} 5. a3 {[%clk 0:03:02.9]}
5... Bxc3+ {[%clk 0:03:04]} 6. bxc3 {[%clk 0:03:04.8]} 6... Qc7 {[%clk
0:03:05.2]} 7. Nf3 {[%clk 0:03:05.1]} 7... Nc6 {[%clk 0:03:05.5]} 8. h4 {[%clk
0:03:04.8]} 8... Nge7 {[%clk 0:03:05.1]} 9. h5 {[%clk 0:03:06.2]} 9... Nf5
{[%clk 0:03:04.7]} 10. g4 {[%clk 0:03:05.9]} 10... Nfe7 {[%clk 0:03:03.9]} 11.
h6 {[%clk 0:03:06.6]} 11... gxh6 {[%clk 0:02:57.7]} 12. Bxh6 {[%clk 0:03:06.9]}
12... cxd4 {[%clk 0:02:58.4]} 13. cxd4 {[%clk 0:03:07.3]} 13... Rg8 {[%clk
0:02:58.7]} 14. Be3 {[%clk 0:02:54.8]} 14... Rxg4 {[%clk 0:02:56.4]} 15. Rxh7
{[%clk 0:02:45.5]} 15... Nf5 {[%clk 0:02:49.8]} 16. Rh8+ {[%clk 0:02:44.6]}
16... Ke7 {[%clk 0:02:50.1]} 17. Qd2 {[%clk 0:02:38.9]} 17... Nxe3 {[%clk
0:02:46.9]} 18. fxe3 {[%clk 0:02:38.1]} 18... Qa5 {[%clk 0:02:46.4]} 19. Qxa5
{[%clk 0:02:33.2]} 19... Nxa5 {[%clk 0:02:47.3]} 20. Kf2 {[%clk 0:02:13]} 20...
b6 {[%clk 0:02:44.8]} 21. Bd3 {[%clk 0:02:10.2]} 21... Bb7 {[%clk 0:02:37.4]}
22. Rah1 {[%clk 0:02:10.2]} 22... Rgg8 {[%clk 0:02:35.7]} 23. R8h7 {[%clk
0:02:06.5]} 23... Nc4 {[%clk 0:02:31.7]} 24. R1h6 {[%clk 0:02:03.2]} 24... Raf8
{[%clk 0:02:16.1]} 25. Bxc4 {[%clk 0:01:49.9]} 25... dxc4 {[%clk 0:02:16]} 26.
Rf6 {[%clk 0:01:51]} 26... Bxf3 {[%clk 0:02:08]} 27. Rxf3 {[%clk 0:01:49.7]}
27... Rh8 {[%clk 0:02:05.2]} 28. Rfh3 {[%clk 0:01:44.5]} 28... Rxh7 {[%clk
0:02:02.7]} 29. Rxh7 {[%clk 0:01:46.4]} 29... Rg8 {[%clk 0:02:04.3]} 30. e4
{[%clk 0:01:46.7]} 30... Rg4 {[%clk 0:02:02.9]} 31. Kf3 {[%clk 0:01:47.4]} 31...
Rg1 {[%clk 0:02:03.9]} 32. d5 {[%clk 0:01:48.4]} 32... exd5 {[%clk 0:02:02.1]}
33. exd5 {[%clk 0:01:49.4]} 33... Rd1 {[%clk 0:01:56.7]} 34. Ke4 {[%clk
0:01:48.9]} 34... Re1+ {[%clk 0:01:57.2]} 35. Kd4 {[%clk 0:01:50]} 35... Kf8
{[%clk 0:01:51.9]} 36. Rh8+ {[%clk 0:01:48.6]} 36... Kg7 {[%clk 0:01:50.5]} 37.
Ra8 {[%clk 0:01:49.4]} 37... a5 {[%clk 0:01:51.2]} 38. Ra6 {[%clk 0:01:46]}
38... Re2 {[%clk 0:01:50.9]} 39. c3 {[%clk 0:01:43.1]} 39... Rd2+ {[%clk
0:01:45]} 40. Kxc4 {[%clk 0:01:42.5]} 40... b5+ {[%clk 0:01:46.4]} 41. Kc5
{[%clk 0:01:43.5]} 41... Rd3 {[%clk 0:01:47.6]} 42. Rxa5 {[%clk 0:01:41.5]}
42... Rxc3+ {[%clk 0:01:48.3]} 43. Kxb5 {[%clk 0:01:42.8]} 43... Re3 {[%clk
0:01:49.6]} 44. Kc6 {[%clk 0:01:41.5]} 44... Rxe5 {[%clk 0:01:50.3]} 45. Rc5
{[%clk 0:01:37.9]} 45... Kf8 {[%clk 0:01:45.2]} 46. d6 {[%clk 0:01:30.3]} 46...
Re1 {[%clk 0:01:46]} 47. Kc7 {[%clk 0:01:28.7]} 47... Rd1 {[%clk 0:01:34.1]} 48.
d7 {[%clk 0:01:28.4]} 48... Ke7 {[%clk 0:01:35.4]} 49. Re5+ {[%clk 0:01:28.9]}
49... Kf6 {[%clk 0:01:36.9]} 50. Re8 {[%clk 0:01:26.3]} 50... Rc1+ {[%clk
0:01:37.6]} 51. Kb6 {[%clk 0:01:27.4]} 51... Rb1+ {[%clk 0:01:37.4]} 52. Kc5
{[%clk 0:01:28.6]} 52... Rc1+ {[%clk 0:01:38.6]} 53. Kb4 {[%clk 0:01:29.7]}
53... Rd1 {[%clk 0:01:39.6]} 54. d8=Q+ {[%clk 0:01:30.5]} 54... Rxd8 {[%clk
0:01:40.6]} 55. Rxd8 {[%clk 0:01:32.4]} 55... Ke5 {[%clk 0:01:42.5]} 56. Rd1
{[%clk 0:01:33.8]} 56... f5 {[%clk 0:01:44.4]} 57. a4 {[%clk 0:01:35.5]} 57...
f4 {[%clk 0:01:46.2]} 58. a5 {[%clk 0:01:37.4]} 58... f3 {[%clk 0:01:48.1]} 59.
a6 {[%clk 0:01:39.3]} 59... f2 {[%clk 0:01:50]} 60. Rf1 {[%clk 0:01:40.5]} 60...
Ke4 {[%clk 0:01:51.1]} 61. Rxf2 {[%clk 0:01:42.4]} 61... Ke3 {[%clk 0:01:53]}
62. Rb2 {[%clk 0:01:43.9]} 62... Kd3 {[%clk 0:01:54.9]} 63. Rb3+ {[%clk
0:01:45.6]} 63... Kd4 {[%clk 0:01:56.8]} 64. Rc3 {[%clk 0:01:47.5]} 64... Kd5
{[%clk 0:01:58.6]} 65. Rc5+ {[%clk 0:01:48.8]} 65... Kd6 {[%clk 0:02:00.1]} 66.
a7 {[%clk 0:01:50.5]} 66... Kd7 {[%clk 0:02:01.3]} 67. a8=Q {[%clk 0:01:52.1]}
67... Ke7 {[%clk 0:02:03.2]} 68. Qb7+ {[%clk 0:01:53.2]} 68... Kd6 {[%clk
0:02:04.3]} 69. Qb6+ {[%clk 0:01:54.7]} 69... Kd7 {[%clk 0:02:05.5]} 70. Rc7+
{[%clk 0:01:56.6]} 70... Kd8 {[%clk 0:02:07.4]} 71. Qb8# {[%clk 0:01:58.5]} 1-0

[Event "*** Titled Tuesday 3|2 Blitz"]
[Site "Chess.com"]
[Date "2016.04.05"]
[Round "1"]
[White "Goala"]
[Black "vovkcoach"]
[Result "0-1"]
[WhiteElo "2244"]
[BlackElo "2567"]
[TimeControl "180+2"]
[EndTime "11:07:55 PDT"]
[Termination "vovkcoach won by resignation"]

1. d4 {[%clk 0:02:52.2]} 1... Nf6 {[%clk 0:03:00.5]} 2. c4 {[%clk 0:02:53.6]}
2... e6 {[%clk 0:03:02.4]} 3. Nf3 {[%clk 0:02:54.4]} 3... b6 {[%clk 0:03:03]} 4.
g3 {[%clk 0:02:54.8]} 4... Bb7 {[%clk 0:03:03.5]} 5. Bg2 {[%clk 0:02:55]} 5...
Be7 {[%clk 0:03:04.3]} 6. O-O {[%clk 0:02:56.6]} 6... O-O {[%clk 0:03:05]} 7.
Re1 {[%clk 0:02:58.2]} 7... Na6 {[%clk 0:03:05]} 8. Bg5 {[%clk 0:02:53.6]} 8...
c5 {[%clk 0:03:03.2]} 9. d5 {[%clk 0:02:43.8]} 9... exd5 {[%clk 0:02:58.6]} 10.
Nh4 {[%clk 0:02:44.5]} 10... h6 {[%clk 0:02:55.4]} 11. Bc1 {[%clk 0:02:35]}
11... Ne4 {[%clk 0:02:36]} 12. cxd5 {[%clk 0:02:33.2]} 12... Bxh4 {[%clk
0:02:36.6]} 13. Bxe4 {[%clk 0:02:34.1]} 13... Re8 {[%clk 0:02:32.2]} 14. Bg2
{[%clk 0:02:17.5]} 14... Bf6 {[%clk 0:02:31.3]} 15. Nc3 {[%clk 0:02:18.3]} 15...
d6 {[%clk 0:02:15.7]} 16. e4 {[%clk 0:01:56.7]} 16... Nc7 {[%clk 0:02:06]} 17.
a4 {[%clk 0:01:56.2]} 17... a6 {[%clk 0:02:04.2]} 18. Qb3 {[%clk 0:01:40.5]}
18... Rb8 {[%clk 0:01:47.9]} 19. Bf4 {[%clk 0:01:11.6]} 19... b5 {[%clk
0:01:44.6]} 20. axb5 {[%clk 0:01:09.4]} 20... axb5 {[%clk 0:01:46.5]} 21. Ra7
{[%clk 0:01:05.9]} 21... b4 {[%clk 0:01:42.3]} 22. Nb1 {[%clk 0:00:33.1]} 22...
Bxd5 {[%clk 0:01:37.4]} 23. Qd1 {[%clk 0:00:28]} 23... Nb5 {[%clk 0:01:30.7]}
24. Ra6 {[%clk 0:00:21.8]} 24... Bb7 {[%clk 0:01:28]} 25. Ra2 {[%clk 0:00:19.4]}
25... Ra8 {[%clk 0:01:07.3]} 26. Rxa8 {[%clk 0:00:17.1]} 26... Qxa8 {[%clk
0:01:09.2]} 27. Nd2 {[%clk 0:00:11.9]} 27... Bxb2 {[%clk 0:01:06]} 28. Nc4
{[%clk 0:00:10.4]} 28... Bd4 {[%clk 0:01:06.5]} 29. Nxd6 {[%clk 0:00:09.8]}
29... Nxd6 {[%clk 0:01:04.4]} 30. Bxd6 {[%clk 0:00:11.7]} 30... Bxe4 {[%clk
0:00:57.2]} 31. Bxe4 {[%clk 0:00:11.8]} 31... Rxe4 {[%clk 0:00:56.8]} 32. Bf4
{[%clk 0:00:11.8]} 32... Qe8 {[%clk 0:00:51.5]} 33. Rxe4 {[%clk 0:00:11.3]}
33... Qxe4 {[%clk 0:00:53.4]} 34. Qc1 {[%clk 0:00:09.4]} 34... b3 {[%clk
0:00:49.8]} 0-1

[Event "*** Titled Tuesday 3|2 Blitz"]
[Site "Chess.com"]
[Date "2016.04.05"]
[Round "1"]
[White "arna"]
[Black "JustaTrickstar"]
[Result "0-1"]
[WhiteElo "2107"]
[BlackElo "2453"]
[TimeControl "180+2"]
[EndTime "11:08:02 PDT"]
[Termination "JustaTrickstar won by resignation"]

1. e4 {[%clk 0:03:00.2]} 1... c5 {[%clk 0:03:00.1]} 2. Nf3 {[%clk 0:03:00.7]}
2... Nc6 {[%clk 0:03:01]} 3. Bb5 {[%clk 0:03:00.8]} 3... g6 {[%clk 0:03:02]} 4.
Bxc6 {[%clk 0:03:01.6]} 4... bxc6 {[%clk 0:03:02.6]} 5. h3 {[%clk 0:03:03.5]}
5... Bg7 {[%clk 0:03:02.9]} 6. d3 {[%clk 0:03:03.9]} 6... d6 {[%clk 0:03:01.6]}
7. O-O {[%clk 0:03:04.3]} 7... Nh6 {[%clk 0:03:02.1]} 8. Nc3 {[%clk 0:03:05]}
8... O-O {[%clk 0:03:02.5]} 9. Be3 {[%clk 0:03:03]} 9... f5 {[%clk 0:02:57.4]}
10. Qd2 {[%clk 0:02:56.9]} 10... Nf7 {[%clk 0:02:57.4]} 11. Rab1 {[%clk
0:02:51.2]} 11... e5 {[%clk 0:02:53]} 12. exf5 {[%clk 0:02:23.2]} 12... gxf5
{[%clk 0:02:45.5]} 13. Bg5 {[%clk 0:02:20]} 13... Qa5 {[%clk 0:01:53.6]} 14. Nd5
{[%clk 0:01:21]} 14... Qxd2 {[%clk 0:01:53.5]} 15. Ne7+ {[%clk 0:01:17.3]} 15...
Kh8 {[%clk 0:01:54.6]} 16. Bxd2 {[%clk 0:01:16.3]} 16... Bd7 {[%clk 0:01:53.1]}
17. Nh4 {[%clk 0:01:02.4]} 17... Nd8 {[%clk 0:01:51.6]} 18. Nhg6+ {[%clk
0:00:16.6]} 18... hxg6 {[%clk 0:01:50.3]} 19. Nxg6+ {[%clk 0:00:18.5]} 19... Kg8
{[%clk 0:01:51]} 20. Nxf8 {[%clk 0:00:20.4]} 20... Kxf8 {[%clk 0:01:49.6]} 21.
f4 {[%clk 0:00:15]} 21... e4 {[%clk 0:01:49.6]} 22. dxe4 {[%clk 0:00:13.3]}
22... fxe4 {[%clk 0:01:51.5]} 23. g4 {[%clk 0:00:14.4]} 23... d5 {[%clk
0:01:50.2]} 24. Rfe1 {[%clk 0:00:08.6]} 24... Ne6 {[%clk 0:01:41.2]} 25. Kg2
{[%clk 0:00:06.9]} 25... Nd4 {[%clk 0:01:39.2]} 26. Bc3 {[%clk 0:00:06.1]} 26...
Nf3 {[%clk 0:01:33.9]} 27. Bxg7+ {[%clk 0:00:05.2]} 27... Kxg7 {[%clk
0:01:35.8]} 28. Rf1 {[%clk 0:00:06.7]} 28... Rf8 {[%clk 0:01:35.2]} 29. Rxf3
{[%clk 0:00:07.2]} 29... exf3+ {[%clk 0:01:36.1]} 30. Kxf3 {[%clk 0:00:09.1]}
30... Re8 {[%clk 0:01:36.9]} 31. Rd1 {[%clk 0:00:07.7]} 31... Re4 {[%clk
0:01:36.8]} 32. c3 {[%clk 0:00:06.9]} 32... a5 {[%clk 0:01:35.9]} 33. a3 {[%clk
0:00:06.4]} 33... Bc8 {[%clk 0:01:32.8]} 34. Rd2 {[%clk 0:00:03.5]} 34... Kf6
{[%clk 0:01:29.8]} 35. h4 {[%clk 0:00:04.2]} 35... Re1 {[%clk 0:01:21.3]} 36. h5
{[%clk 0:00:04.2]} 36... Rf1+ {[%clk 0:01:21]} 37. Ke3 {[%clk 0:00:03.8]} 37...
Bxg4 {[%clk 0:01:20.5]} 38. Rh2 {[%clk 0:00:04.6]} 38... Rf3+ {[%clk 0:01:20.3]}
39. Kd2 {[%clk 0:00:05.3]} 39... Rh3 {[%clk 0:01:19.5]} 40. Rxh3 {[%clk
0:00:02.9]} 40... Bxh3 {[%clk 0:01:20.7]} 41. h6 {[%clk 0:00:04.6]} 41... Kg6
{[%clk 0:01:21.9]} 0-1

[Event "*** Titled Tuesday 3|2 Blitz"]
[Site "Chess.com"]
[Date "2016.04.05"]
[Round "1"]
[White "Hikaru"]
[Black "Lupul_Cenusiu"]
[Result "1-0"]
[WhiteElo "2876"]
[BlackElo "2373"]
[TimeControl "180+2"]
[EndTime "11:08:32 PDT"]
[Termination "Hikaru won by resignation"]

1. e4 {[%clk 0:02:38.8]} 1... d6 {[%clk 0:02:58.5]} 2. d4 {[%clk 0:02:39.5]}
2... g6 {[%clk 0:02:58.9]} 3. Nc3 {[%clk 0:02:40.2]} 3... Bg7 {[%clk 0:03:00]}
4. f4 {[%clk 0:02:42.1]} 4... c6 {[%clk 0:02:59]} 5. Nf3 {[%clk 0:02:40.4]} 5...
b5 {[%clk 0:02:55.4]} 6. e5 {[%clk 0:02:37.4]} 6... d5 {[%clk 0:02:52.7]} 7. h3
{[%clk 0:02:33]} 7... h5 {[%clk 0:02:48.2]} 8. Bd3 {[%clk 0:02:29.6]} 8... Nh6
{[%clk 0:02:45.4]} 9. Nh4 {[%clk 0:02:28.4]} 9... Nf5 {[%clk 0:02:38.5]} 10.
Nxf5 {[%clk 0:02:21.8]} 10... Bxf5 {[%clk 0:02:39.3]} 11. Bxf5 {[%clk
0:02:22.7]} 11... gxf5 {[%clk 0:02:40.6]} 12. h4 {[%clk 0:02:23]} 12... e6
{[%clk 0:02:37.8]} 13. a4 {[%clk 0:02:23.7]} 13... b4 {[%clk 0:02:34.5]} 14. Ne2
{[%clk 0:02:24.9]} 14... Bf8 {[%clk 0:02:28.5]} 15. Be3 {[%clk 0:02:19.7]} 15...
Be7 {[%clk 0:02:25.6]} 16. g3 {[%clk 0:02:19.8]} 16... Nd7 {[%clk 0:02:25.3]}
17. c3 {[%clk 0:02:20.2]} 17... bxc3 {[%clk 0:02:24.9]} 18. bxc3 {[%clk
0:02:20.9]} 18... c5 {[%clk 0:02:23.9]} 19. a5 {[%clk 0:02:21.6]} 19... c4
{[%clk 0:02:22.4]} 20. Qa4 {[%clk 0:02:19.6]} 20... Qc7 {[%clk 0:02:21.5]} 21.
Kf2 {[%clk 0:02:16.9]} 21... Kf8 {[%clk 0:02:19.8]} 22. Rhb1 {[%clk 0:02:12]}
22... Kg7 {[%clk 0:02:19.2]} 23. Bc1 {[%clk 0:02:01.2]} 23... Rhb8 {[%clk
0:02:14]} 24. Ba3 {[%clk 0:02:01.2]} 24... Bf8 {[%clk 0:02:08.3]} 25. Bb4 {[%clk
0:01:54.4]} 25... a6 {[%clk 0:02:03.1]} 26. Qa3 {[%clk 0:01:51.3]} 26... Rb7
{[%clk 0:01:50.1]} 27. Bd6 {[%clk 0:01:35.1]} 27... Bxd6 {[%clk 0:01:43.8]} 28.
Rxb7 {[%clk 0:01:32.9]} 28... Qxb7 {[%clk 0:01:41]} 29. Qxd6 {[%clk 0:01:34.4]}
29... Nf8 {[%clk 0:01:40.1]} 30. Qb4 {[%clk 0:01:28.8]} 30... Qxb4 {[%clk
0:01:20.2]} 31. cxb4 {[%clk 0:01:30.7]} 31... Ng6 {[%clk 0:01:17.6]} 32. Nc3
{[%clk 0:01:24.8]} 32... Ne7 {[%clk 0:01:18.5]} 33. b5 {[%clk 0:01:15.3]} 33...
axb5 {[%clk 0:01:17.9]} 34. Nxb5 {[%clk 0:01:17.2]} 34... Ra6 {[%clk 0:01:12.8]}
35. Nc7 {[%clk 0:01:00.4]} 35... Rc6 {[%clk 0:01:11.9]} 36. Ne8+ {[%clk
0:00:49.6]} 36... Kg6 {[%clk 0:01:12.2]} 37. a6 {[%clk 0:00:48.8]} 37... Nc8
{[%clk 0:01:13.3]} 38. a7 {[%clk 0:00:40]} 38... Nxa7 {[%clk 0:01:10]} 39. Rxa7
{[%clk 0:00:41.9]} 39... c3 {[%clk 0:01:11]} 40. Ra1 {[%clk 0:00:42.1]} 40...
Rc4 {[%clk 0:01:04.9]} 41. Rc1 {[%clk 0:00:42.2]} 41... Rxd4 {[%clk 0:00:58.5]}
42. Rxc3 {[%clk 0:00:42.5]} 42... Rd2+ {[%clk 0:00:59.5]} 43. Kf3 {[%clk
0:00:43.9]} 43... d4 {[%clk 0:00:57]} 44. Ra3 {[%clk 0:00:44.5]} 44... Rd1
{[%clk 0:00:56.5]} 45. Nf6 {[%clk 0:00:42.8]} 45... Rd2 {[%clk 0:00:50.2]} 46.
Ra8 {[%clk 0:00:41.2]} 46... Rd3+ {[%clk 0:00:49.4]} 47. Ke2 {[%clk 0:00:40.5]}
47... Rb3 {[%clk 0:00:49.4]} 48. Rg8+ {[%clk 0:00:40.4]} 48... Kh6 {[%clk
0:00:50.6]} 49. Rh8+ {[%clk 0:00:39.8]} 49... Kg6 {[%clk 0:00:51.8]} 50. Rxh5
{[%clk 0:00:39.9]} 50... Rxg3 {[%clk 0:00:49.8]} 51. Rg5+ {[%clk 0:00:40.4]}
51... Rxg5 {[%clk 0:00:50.8]} 52. hxg5 {[%clk 0:00:42.3]} 1-0

[Event "*** Titled Tuesday 3|2 Blitz"]
[Site "Chess.com"]
[Date "2016.04.05"]
[Round "1"]
[White "ajkom197"]
[Black "platy3"]
[Result "0-1"]
[WhiteElo "2165"]
[BlackElo "2508"]
[TimeControl "180+2"]
[EndTime "11:08:40 PDT"]
[Termination "platy3 won by resignation"]

1. c4 {[%clk 0:03:01.9]} 1... g6 {[%clk 0:02:56.7]} 2. g3 {[%clk 0:03:03.1]}
2... Bg7 {[%clk 0:02:57.6]} 3. Bg2 {[%clk 0:03:04.6]} 3... e5 {[%clk 0:02:56.8]}
4. Nc3 {[%clk 0:03:05.1]} 4... Ne7 {[%clk 0:02:56.5]} 5. e3 {[%clk 0:03:06.5]}
5... d6 {[%clk 0:02:56.3]} 6. Nge2 {[%clk 0:03:07.6]} 6... Nbc6 {[%clk
0:02:54.8]} 7. O-O {[%clk 0:03:08.2]} 7... h5 {[%clk 0:02:48.6]} 8. d4 {[%clk
0:03:08.3]} 8... h4 {[%clk 0:02:48.3]} 9. Rb1 {[%clk 0:03:06.5]} 9... Bf5 {[%clk
0:02:44]} 10. e4 {[%clk 0:03:06.8]} 10... Bd7 {[%clk 0:02:42.2]} 11. dxe5 {[%clk
0:03:02.7]} 11... Nxe5 {[%clk 0:02:42.4]} 12. b3 {[%clk 0:02:57.1]} 12... hxg3
{[%clk 0:02:34.2]} 13. fxg3 {[%clk 0:02:54.6]} 13... Qc8 {[%clk 0:02:30.3]} 14.
Nf4 {[%clk 0:02:44.7]} 14... Bg4 {[%clk 0:02:09.4]} 15. Qc2 {[%clk 0:02:35.4]}
15... c6 {[%clk 0:01:58.3]} 16. Ba3 {[%clk 0:02:32]} 16... Qc7 {[%clk
0:01:58.9]} 17. h3 {[%clk 0:02:24.8]} 17... Bd7 {[%clk 0:01:54.2]} 18. Rbd1
{[%clk 0:02:24.6]} 18... Nc8 {[%clk 0:01:45.2]} 19. Qf2 {[%clk 0:02:10.2]} 19...
g5 {[%clk 0:01:24.4]} 20. Nfd5 {[%clk 0:02:06.8]} 20... cxd5 {[%clk 0:01:21.6]}
21. exd5 {[%clk 0:01:51.3]} 21... Bxh3 {[%clk 0:01:16.1]} 22. Nb5 {[%clk
0:01:44.9]} 22... Qd7 {[%clk 0:01:14.6]} 23. Rfe1 {[%clk 0:01:39.8]} 23... Bxg2
{[%clk 0:01:09]} 24. Qxg2 {[%clk 0:01:40.9]} 24... O-O {[%clk 0:01:07.5]} 25.
Re4 {[%clk 0:01:26.2]} 25... f5 {[%clk 0:01:02]} 26. Re2 {[%clk 0:01:25.9]}
26... f4 {[%clk 0:01:01.8]} 27. gxf4 {[%clk 0:01:22.9]} 27... Rxf4 {[%clk
0:00:58.3]} 28. Rxe5 {[%clk 0:01:17.8]} 28... Bxe5 {[%clk 0:00:53]} 29. Qxg5+
{[%clk 0:01:16]} 29... Kf8 {[%clk 0:00:38.3]} 30. Rf1 {[%clk 0:01:01.7]} 30...
Qg7 {[%clk 0:00:32.9]} 31. Rxf4+ {[%clk 0:00:43.3]} 31... Bxf4 {[%clk
0:00:33.6]} 32. Qxg7+ {[%clk 0:00:40.9]} 32... Kxg7 {[%clk 0:00:35.3]} 33. Nc7
{[%clk 0:00:42.5]} 33... Be3+ {[%clk 0:00:36.4]} 34. Kg2 {[%clk 0:00:43.4]}
34... Rb8 {[%clk 0:00:38]} 35. Kf3 {[%clk 0:00:44.8]} 35... Bb6 {[%clk
0:00:35.9]} 36. Ne6+ {[%clk 0:00:43.7]} 36... Kf7 {[%clk 0:00:37.2]} 37. Ke4
{[%clk 0:00:43.2]} 37... Ke8 {[%clk 0:00:36]} 38. b4 {[%clk 0:00:42.2]} 38...
Kd7 {[%clk 0:00:34]} 39. c5 {[%clk 0:00:43.3]} 39... Bc7 {[%clk 0:00:32.3]} 40.
b5 {[%clk 0:00:36]} 40... dxc5 {[%clk 0:00:29.9]} 41. Nxc5+ {[%clk 0:00:37.9]}
41... Ke8 {[%clk 0:00:30.9]} 42. Bb2 {[%clk 0:00:34.7]} 42... Nd6+ {[%clk
0:00:31.5]} 43. Kd3 {[%clk 0:00:32.5]} 43... Bb6 {[%clk 0:00:30.3]} 44. a4
{[%clk 0:00:34.4]} 44... Bxc5 {[%clk 0:00:31.2]} 0-1